bitfinex/quotes_ETHUSD_20260117
["timestamp","ask_amount","ask_price","bid_price","bid_amount"]
[1768673309030,0.001,3316.1,3315.9,10.15913799]
[1768673313032,0.001,3316.1,3316.0,0.498]
[1768673313213,7.56419686,3316.4,3316.0,0.498]
[1768673313414,8.62213525,3316.4,3316.0,0.498]
[1768673317243,8.62213525,3316.4,3316.1,0.498]
[1768673333790,8.62213525,3316.4,3314.3,0.128]
[1768673334062,1.23816884,3314.5,3314.3,7.4477929]
[1768673334260,7.40183752,3314.8,3314.3,7.4477929]
[1768673335840,0.30165251,3314.9,3314.3,7.4477929]
[1768673336045,0.00080152,3315.4,3314.7,0.00080152]
[1768673336245,0.00080152,3315.4,3314.8,7.9457929]
[1768673336667,0.00080152,3315.4,3314.9,0.07735442]
[1768673336990,7.40263904,3315.4,3315.0,7.4477929]
[1768673337149,0.30165241,3315.3,3315.0,7.4477929]
[1768673341067,11.7918807,3315.3,3314.9,0.07735442]
[1768673341257,7.40183752,3315.1,3314.7,0.00080152]
[1768673341466,7.40183752,3315.1,3314.7,0.49880152]
[1768673344270,7.40183752,3315.1,3315.0,0.002]
[1768673344442,7.40183752,3315.1,3314.7,0.49880152]
[1768673344645,0.30165241,3315.0,3314.7,0.49880152]
[1768673348270,0.30165241,3315.0,3314.7,7.94659442]
[1768673348944,0.30165241,3315.0,3314.8,7.4477929]
[1768673350879,3.01705415,3315.4,3314.9,7.4477929]
[1768673350880,0.00080152,3315.4,3314.9,7.4477929]
[1768673352259,0.00080152,3315.4,3315.1,7.4477929]
[1768673352459,0.00080168,3315.7,3315.3,7.4477929]
[1768673353369,7.4026392,3315.7,3315.3,7.4477929]
[1768673354805,0.00080168,3315.7,3315.3,7.4477929]
[1768673355659,0.00080168,3315.7,3315.3,10.46406722]
[1768673355885,0.00080168,3315.7,3315.4,7.4477929]
[1768673362659,0.00080168,3315.7,3315.5,7.8198058]
[1768673372724,0.00080168,3315.7,3315.5,10.83589786]
[1768673373490,7.40183752,3316.0,3315.5,10.83589786]
[1768673373691,8.44376078,3316.0,3315.5,10.83589786]
[1768673373985,1.04192326,3316.0,3315.6,8.38999994]
[1768673381245,0.001,3315.7,3315.6,8.38999994]
[1768673381446,7.85096329,3316.1,3315.6,8.38999994]
[1768673381610,10.86658069,3316.1,3315.6,8.38999994]
[1768673381804,12.59895464,3316.1,3315.6,8.38999994]
[1768673385947,9.58333724,3316.1,3315.6,8.38999994]
[1768673386244,12.59895382,3316.1,3315.6,8.38999994]
[1768673388953,0.0018012,3316.1,3315.7,7.89199994]
[1768673392620,0.0018012,3316.1,3315.8,11.1957948]
[1768673393036,0.0018012,3316.1,3315.9,8.17993136]
[1768673394723,0.0018012,3316.1,3316.0,0.498]
[1768673413800,8.33272622,3316.3,3316.0,0.498]
[1768673416291,0.00080112,3316.4,3316.0,0.498]
[1768673416497,0.00080112,3316.4,3316.0,3.51367851]
[1768673416903,0.00080112,3316.4,3316.1,8.17993136]
[1768673419304,0.00080112,3316.4,3316.1,11.19551425]
[1768673420799,0.00080112,3316.4,3316.1,8.17993136]
[1768673422161,0.00080112,3316.4,3316.0,0.498]
[1768673422162,8.23291549,3316.4,3316.0,0.498]
[1768673422792,8.23291549,3316.4,3316.0,3.51367767]
[1768673425100,0.00080112,3316.4,3316.1,8.48202442]
[1768673426596,0.00080112,3316.4,3316.1,11.49756567]
[1768673426897,0.00080112,3316.4,3316.2,8.48202442]
[1768673429178,0.00080112,3316.4,3316.3,8.48202442]
[1768673434377,0.00080112,3316.4,3316.3,11.49743315]
[1768673436706,8.21171099,3316.8,3316.4,8.29473164]
[1768673437003,8.21171099,3316.8,3316.5,0.498]
[1768673437506,8.21171099,3316.8,3316.0,0.0008012]
[1768673437507,12.44841,3317.1,3315.2,8.29473164]
[1768673437708,4.6597333,3315.9,3315.3,11.31183965]
[1768673437890,4.6597333,3315.9,3315.4,0.498]
[1768673438202,4.6597333,3315.9,3315.3,0.00080176]
[1768673438409,4.6597333,3315.9,3315.3,0.49880176]
[1768673439717,4.71161992,3315.7,3315.3,0.49880176]
[1768673441441,4.71161992,3315.7,3315.6,0.002]
[1768673441591,4.71161992,3315.7,3315.3,0.49880176]
[1768673442013,4.71161992,3315.7,3315.3,0.50080176]
[1768673454442,4.71161992,3315.7,3315.6,0.002]
[1768673454736,3.01586464,3315.8,3315.3,8.92865325]
[1768673455138,8.12340351,3315.8,3315.3,8.92865325]
[1768673455940,5.12849247,3315.7,3315.3,8.92865325]
[1768673465151,3.01577249,3315.9,3315.3,3.51710034]
[1768673465332,3.01577249,3315.9,3315.4,8.42785149]
[1768673465845,3.01577249,3315.9,3315.6,0.002]
[1768673466020,4.5861869,3315.9,3315.6,0.002]
[1768673472060,3.01577249,3315.9,3315.6,8.42985149]
[1768673473052,3.01577249,3315.9,3315.6,0.002]
[1768673481560,3.01568981,3316.0,3315.6,0.002]
[1768673481731,8.59600031,3316.0,3315.6,0.002]
[1768673482133,11.61169012,3316.0,3315.6,0.002]
[1768673488565,13.20950072,3316.0,3315.6,0.002]
[1768673489472,13.20950072,3316.0,3315.5,8.42785149]
[1768673489473,5.71374176,3315.9,3315.5,8.42785149]
[1768673490089,0.001,3315.7,3315.5,8.42785149]
[1768673490284,0.001,3315.7,3315.5,0.96525072]
[1768673490491,0.001,3315.7,3315.3,8.85498718]
[1768673494373,0.001,3315.7,3315.3,8.35698718]
[1768673494572,0.001,3315.7,3315.4,9.72661574]
[1768673503280,8.46814749,3315.7,3315.4,0.498]
[1768673505360,0.001,3315.7,3315.4,0.498]
[1768673509592,8.46894877,3316.1,3315.7,9.22861574]
[1768673509806,8.46894877,3316.1,3315.5,9.22861574]
[1768673509807,0.28140871,3316.0,3315.5,9.22861574]
[1768673510001,3.0174308,3316.1,3315.5,9.22861574]
[1768673510174,8.46714749,3316.0,3315.5,9.22861574]
[1768673513421,8.46714749,3316.0,3315.5,12.24469572]
[1768673513608,0.001,3315.7,3315.5,12.24469572]
[1768673518299,0.001,3315.7,3315.6,0.498]
[1768673578436,0.001,3315.7,3315.5,12.24475123]
[1768673578591,0.001,3315.7,3315.6,0.498]
[1768673597029,10.4672433,3315.7,3315.3,3.01910592]
[1768673597227,10.4662433,3315.6,3315.4,0.498]
[1768673597396,10.4662433,3315.6,3315.2,3.51433981]
[1768673606440,0.00180176,3315.7,3315.2,13.77466181]
[1768673606740,0.00180176,3315.7,3315.3,10.260322]
[1768673613346,0.00180176,3315.7,3315.3,13.27660646]
[1768673614039,0.00180176,3315.7,3315.3,13.25976847]
[1768673617755,0.001,3315.4,3315.3,13.25976847]
[1768673618061,0.00180176,3315.7,3315.3,13.25976847]
[1768673618535,0.00180176,3315.7,3315.4,10.58588821]
[1768673622660,0.00180176,3315.7,3315.4,13.60208419]
[1768673626073,0.00180176,3315.7,3315.3,3.01631828]
[1768673626260,0.00180176,3315.7,3315.3,13.60220649]
[1768673629567,0.001,3315.4,3315.3,13.60220649]
[1768673629767,0.00180176,3315.7,3315.3,13.60220649]
[1768673633974,0.00180176,3315.7,3315.4,11.12214922]
[1768673634138,10.6550413,3316.0,3315.4,11.12214922]
[1768673634343,12.3238368,3316.0,3315.4,11.12214922]
[1768673635240,15.33953444,3316.0,3315.4,14.13837512]
[1768673635439,10.6550413,3315.9,3315.4,14.13837512]
[1768673638682,13.67083667,3315.9,3315.4,11.12214922]
[1768673638856,10.6550413,3315.8,3315.3,3.0170949]
[1768673641098,10.6550413,3315.8,3315.4,0.498]
[1768673641796,0.001,3315.6,3315.4,0.498]
[1768673643682,0.001,3315.6,3315.4,3.51422476]
[1768673643883,0.001,3315.6,3315.5,11.12214922]
[1768673646712,0.001,3315.6,3315.4,3.51422476]
[1768673654247,0.001,3315.6,3315.4,3.51622476]
[1768673667354,11.26900369,3315.6,3315.4,3.51622476]
[1768673669377,0.001,3315.6,3315.4,3.51622476]
[1768673670771,0.001,3315.6,3315.4,3.01822476]
[1768673670980,11.26900369,3315.6,3315.5,0.498]
[1768673672476,0.001,3315.6,3315.5,0.498]
[1768673679980,0.001,3315.6,3315.4,0.002]
[1768673684908,10.53711549,3315.6,3315.4,0.002]
[1768673687015,13.55318681,3315.6,3315.4,0.002]
[1768673687517,15.21009334,3315.6,3315.3,0.00080184]
[1768673687817,10.53611549,3315.5,3314.7,0.49880152]
[1768673688021,10.53611549,3315.3,3314.7,0.49880152]
[1768673688197,10.53611549,3315.3,3314.7,11.27217988]
[1768673689319,11.05805234,3315.3,3314.7,11.27217988]
[1768673690993,10.53611549,3315.2,3314.7,11.27217988]
[1768673692726,10.2190828,3315.1,3314.7,0.00080152]
[1768673692903,10.21988432,3315.1,3314.6,0.002]
[1768673693102,10.2190828,3314.9,3314.6,0.002]
[1768673701233,11.84436464,3315.0,3314.6,0.002]
[1768673701740,11.84436464,3315.0,3314.6,10.91482655]
[1768673701741,1.62528184,3315.0,3314.6,10.91482655]
[1768673701903,0.00080152,3315.1,3314.7,10.91282655]
[1768673702105,0.001,3315.0,3314.7,10.91282655]
[1768673718659,0.001,3315.0,3314.6,0.002]
[1768673718832,10.2200828,3315.0,3314.6,0.002]
[1768673719152,11.84547215,3315.0,3314.6,0.002]
[1768673721656,11.84547215,3315.0,3314.6,10.91482655]
[1768673723662,10.2200828,3315.0,3314.6,10.91482655]
[1768673725868,0.001,3314.7,3314.6,10.91482655]
[1768673738281,0.001,3314.7,3314.6,0.002]
[1768673765104,10.43353776,3315.0,3314.6,0.002]
[1768673765310,0.0008016,3315.4,3314.7,10.98991323]
[1768673765485,0.0008016,3315.4,3314.7,10.99071483]
[1768673767110,0.0008016,3315.4,3314.9,10.98991323]
[1768673767290,0.0008016,3315.4,3315.0,11.48791323]
[1768673768813,0.0008016,3315.4,3315.1,3.01650025]
[1768673768980,0.0008016,3315.4,3315.1,3.51450025]
[1768673769616,0.0008016,3315.4,3315.1,3.01450025]
[1768673769914,0.0008016,3315.4,3315.1,11.48791323]
[1768673772910,0.0008016,3315.4,3315.1,14.50437055]
[1768673780823,0.0008016,3315.4,3315.1,14.00637055]
[1768673781025,0.0008016,3315.4,3315.1,14.50437055]
[1768673784626,0.0008016,3315.4,3315.2,10.34220244]
[1768673784825,0.0008016,3315.4,3315.1,3.51445732]
[1768673784826,0.001,3315.6,3315.3,10.34220244]
[1768673785029,9.65558498,3316.1,3315.2,10.34220244]
[1768673785232,9.65558498,3316.1,3315.1,6.53095757]
[1768673785233,9.65558498,3316.1,3315.4,10.34220244]
[1768673785730,9.65558498,3316.1,3315.6,10.34220244]
[1768673785934,10.92268718,3316.1,3315.6,10.34220244]
[1768673786923,9.62859039,3316.0,3315.5,0.498]
[1768673787129,9.62859039,3316.0,3315.5,10.84020244]
[1768673787325,9.62859039,3316.0,3315.5,13.85633357]
[1768673794433,9.62859039,3316.0,3315.5,10.84020244]
[1768673794735,12.64430282,3316.0,3315.5,10.84020244]
[1768673797337,9.62859039,3316.0,3315.5,13.85632902]
[1768673798331,0.001,3315.7,3315.5,13.85632902]
[1768673799836,0.001,3315.7,3315.6,11.1199238]
[1768673801862,0.001,3315.7,3315.6,14.13596916]
[1768673804430,9.4281092,3316.1,3315.6,14.13596916]
[1768673805846,0.00180128,3316.1,3315.7,11.1199238]
[1768673806319,0.00180128,3316.1,3315.8,11.1199238]
[1768673808352,0.00180128,3316.1,3315.8,14.13574356]
[1768673808650,0.00180128,3316.1,3315.9,11.1199238]
[1768673809154,0.00180128,3316.1,3315.8,3.01581976]
[1768673810518,0.00180128,3316.1,3315.9,11.1199238]
[1768673810726,0.00180128,3316.1,3315.9,11.6179238]
[1768673813539,0.0008012,3316.4,3316.0,3.01568154]
[1768673814268,0.0008012,3316.4,3316.1,10.63992806]
[1768673815638,0.0008012,3316.4,3316.2,13.65542772]
[1768673816739,0.0008012,3316.4,3316.3,10.63992806]
[1768673817140,9.7936287,3316.9,3316.3,10.63992806]
[1768673817542,12.80850856,3316.9,3316.3,10.63992806]
[1768673817756,9.2956287,3316.8,3316.3,13.6552931]
[1768673819044,3.51287986,3316.9,3316.3,13.6552931]
[1768673819045,0.498,3316.9,3316.4,10.63992806]
[1768673819232,9.7766264,3316.9,3316.4,10.63992806]
[1768673819555,9.2786264,3316.9,3316.4,10.63992806]
[1768673819761,9.2786264,3317.0,3316.4,10.63992806]
[1768673821040,9.26201243,3317.1,3316.6,10.63992806]
[1768673822037,9.2538483,3317.3,3316.7,0.498]
[1768673822267,9.2538483,3317.3,3316.8,10.63992806]
[1768673823764,12.26835133,3317.3,3316.8,10.63992806]
[1768673825177,9.2538483,3317.3,3316.8,10.63992806]
[1768673825648,9.2538483,3317.3,3316.8,13.65487914]
[1768673828393,9.2538483,3317.3,3316.9,10.63992806]
[1768673832484,12.26835631,3317.3,3316.8,0.498]
[1768673832709,9.17719075,3317.2,3316.6,3.0150737]
[1768673832910,9.17719075,3317.2,3316.7,0.498]
[1768673833894,9.16389358,3317.0,3316.7,0.498]
[1768673834411,0.001,3317.0,3316.7,3.51302519]
[1768673834714,9.16389358,3317.0,3316.6,0.498]
[1768673835493,9.16389358,3317.0,3316.6,3.51311639]
[1768673838188,0.001,3317.0,3316.6,14.15304445]
[1768673845934,0.001,3316.7,3316.6,14.15304445]
[1768673846232,0.001,3317.0,3316.6,14.15304445]
[1768673850531,0.001,3317.0,3316.6,11.13792806]
[1768673855850,0.001,3317.0,3316.6,14.15306022]
[1768673857347,0.001,3316.7,3316.6,14.15306022]
[1768673858246,0.001,3316.7,3316.4,10.81378322]
[1768673858451,9.00519436,3316.7,3316.5,0.498]
[1768673866055,9.00519436,3316.7,3316.4,0.498]
[1768673869056,0.001,3316.7,3316.4,3.51328636]
[1768673869357,0.001,3316.7,3316.4,0.5]
[1768673894504,0.001,3316.7,3316.4,13.27147651]
[1768673925921,0.001,3316.7,3316.4,3.5153131]
[1768673926123,0.001,3316.7,3316.4,14.12715426]
[1768673928335,0.001,3316.7,3316.4,3.5153131]
[1768673928534,0.001,3316.7,3316.5,10.61184116]
[1768673931539,0.001,3316.7,3316.4,3.5153131]
[1768673934136,0.001,3316.7,3316.4,14.16463285]
[1768673938539,0.001,3316.7,3316.5,10.64931975]
[1768673942822,0.001,3316.7,3316.5,13.66453546]
[1768673943022,0.001,3316.7,3316.5,10.64931975]
[1768673944244,0.001,3316.7,3316.5,13.66453182]
[1768673953050,0.001,3316.7,3316.5,3.01521207]
[1768673954346,0.001,3316.7,3316.6,10.64931975]
[1768673959828,0.001,3316.7,3316.6,13.66445573]
[1768673961030,0.001,3317.0,3316.6,3.01513598]
[1768673961229,0.001,3317.0,3316.7,10.64931975]
[1768673967281,0.001,3317.0,3316.7,13.66433046]
[1768673967580,0.001,3317.0,3316.8,10.38367479]
[1768673968253,0.001,3317.0,3316.8,10.88167479]
[1768673970974,0.001,3317.0,3316.8,13.8966283]
[1768673971178,0.001,3317.0,3316.9,10.38367479]
[1768673976873,0.001,3317.0,3316.9,13.39853806]
[1768673978190,0.001,3317.5,3317.0,9.75827644]
[1768673978885,8.65788071,3317.5,3317.0,9.75827644]
[1768673979387,8.65788071,3317.5,3317.0,12.77301269]
[1768673980486,0.001,3317.5,3317.1,9.75827644]
[1768673980986,0.001,3317.5,3317.2,0.498]
[1768673982489,0.001,3317.5,3317.2,10.25627644]
[1768673987086,8.64744685,3317.5,3317.2,0.498]
[1768673987861,0.001,3317.5,3317.2,0.498]
[1768673988084,0.001,3317.5,3317.3,9.75827644]
[1768673988804,0.001,3317.5,3317.2,0.498]
[1768673994282,0.001,3317.5,3317.2,10.95870027]
[1768674001045,0.001,3317.5,3317.2,0.498]
[1768674008818,0.001,3317.5,3317.2,10.95870027]
[1768674009552,0.001,3317.5,3317.2,10.46070027]
[1768674009847,0.001,3317.5,3317.3,0.498]
[1768674011239,0.001,3317.5,3317.3,10.95870027]
[1768674014370,0.001,3317.5,3317.3,10.46070027]
[1768674014571,0.001,3317.5,3317.3,10.95870027]
[1768674016370,0.001,3317.5,3317.3,13.97319904]
[1768674016570,0.001,3317.5,3317.3,10.95870027]
[1768674022760,0.001,3317.5,3317.3,0.498]
[1768674023460,0.001,3317.5,3317.1,13.11319302]
[1768674023665,0.001,3317.5,3317.2,0.498]
[1768674024375,0.001,3317.5,3317.1,13.11319302]
[1768674024578,0.001,3317.5,3317.2,0.498]
[1768674027654,0.001,3317.5,3317.2,10.59653664]
[1768674029092,0.001,3317.5,3317.2,13.61112147]
[1768674029589,0.001,3317.5,3317.3,10.09853664]
[1768674033585,0.001,3317.5,3317.3,13.11299701]
[1768674033790,0.001,3317.5,3317.4,10.59506544]
[1768674037965,0.001,3317.5,3317.3,10.59506544]
[1768674040907,0.001,3317.5,3317.3,13.60954585]
[1768674041112,0.001,3317.5,3317.3,3.01448041]
[1768674041278,0.001,3317.5,3317.4,10.59506544]
[1768674042198,11.61440609,3318.0,3317.4,10.59506544]
[1768674042405,0.28166518,3317.9,3317.4,10.59506544]
[1768674042586,11.61440609,3318.0,3317.4,10.59506544]
[1768674042941,0.28166652,3317.9,3317.4,10.59506544]
[1768674043116,11.61440609,3318.0,3317.4,10.59506544]
[1768674043421,0.28164639,3317.9,3317.4,10.59506544]
[1768674043576,11.61440609,3318.0,3317.4,3.01439253]
[1768674043778,0.28164635,3317.9,3317.5,10.59506544]
[1768674043991,8.60051295,3318.0,3317.5,10.59506544]
[1768674044193,0.28164676,3317.9,3317.5,10.59506544]
[1768674044415,8.60051295,3318.0,3317.5,10.59506544]
[1768674044619,0.28162944,3317.9,3317.5,10.59506544]
[1768674044820,8.60051295,3318.0,3317.5,10.59506544]
[1768674045110,0.28162947,3317.9,3317.5,10.59506544]
[1768674045316,3.01380427,3318.1,3317.5,10.59506544]
[1768674045514,0.28161596,3318.0,3317.6,11.09306544]
[1768674045722,0.28161596,3317.9,3317.6,11.09306544]
[1768674046017,11.61209127,3318.1,3317.6,11.09306544]
[1768674046220,0.28161759,3318.0,3317.6,11.09306544]
[1768674046528,11.61209127,3318.1,3317.6,11.09306544]
[1768674046683,0.28159959,3318.0,3317.6,11.09306544]
[1768674046889,11.61209127,3318.1,3317.6,11.09306544]
[1768674047103,0.28160106,3318.0,3317.6,11.09306544]
[1768674047302,11.61209127,3318.1,3317.6,11.09306544]
[1768674047502,0.28158331,3318.0,3317.6,11.09306544]
[1768674047703,11.61209127,3318.1,3317.6,11.09306544]
[1768674047904,0.28158294,3318.0,3317.6,11.09306544]
[1768674048105,11.61209127,3318.1,3317.6,11.09306544]
[1768674048314,0.28156874,3318.0,3317.6,11.09306544]
[1768674048514,11.61209127,3318.1,3317.6,11.09306544]
[1768674048714,0.28156882,3318.0,3317.6,11.09306544]
[1768674048926,11.61209127,3318.1,3317.6,11.09306544]
[1768674049085,0.28156784,3318.0,3317.6,11.09306544]
[1768674049290,11.61209127,3318.1,3317.6,11.09306544]
[1768674049523,0.28155579,3318.0,3317.6,11.09306544]
[1768674049716,11.61209127,3318.1,3317.6,11.09306544]
[1768674049933,0.28155534,3318.0,3317.6,11.09306544]
[1768674050106,11.61209127,3318.1,3317.6,11.09306544]
[1768674050296,0.28154594,3318.0,3317.6,11.09306544]
[1768674050496,11.61209127,3318.1,3317.6,11.09306544]
[1768674050697,0.28154659,3318.0,3317.6,11.09306544]
[1768674051027,11.61209127,3318.1,3317.6,11.09306544]
[1768674051218,0.28154659,3318.0,3317.6,11.09306544]
[1768674051523,11.61209127,3318.1,3317.6,11.09306544]
[1768674051723,0.28153843,3318.0,3317.6,11.09306544]
[1768674051914,11.61209127,3318.1,3317.6,11.09306544]
[1768674052088,0.28153832,3318.0,3317.6,11.09306544]
[1768674052293,11.61209127,3318.1,3317.6,11.09306544]
[1768674052491,0.281532,3318.0,3317.6,11.09306544]
[1768674052796,11.61209127,3318.1,3317.6,11.09306544]
[1768674053009,0.28153187,3318.0,3317.6,11.09306544]
[1768674053209,11.61209127,3318.1,3317.6,11.09306544]
[1768674053409,0.28152799,3318.0,3317.6,11.09306544]
[1768674053706,11.61209127,3318.1,3317.6,11.09306544]
[1768674053897,0.28152787,3318.0,3317.6,11.09306544]
[1768674054098,11.61209127,3318.1,3317.6,11.09306544]
[1768674054318,0.28152591,3318.0,3317.6,11.09306544]
[1768674054534,13.07466135,3318.1,3317.6,11.09306544]
[1768674054696,0.28152606,3318.0,3317.6,11.09306544]
[1768674054995,13.07466135,3318.1,3317.6,11.09306544]
[1768674055189,0.28152603,3318.0,3317.6,11.09306544]
[1768674055414,13.07466135,3318.1,3317.6,11.09306544]
[1768674055614,0.28152655,3318.0,3317.6,11.09306544]
[1768674055825,13.07466135,3318.1,3317.6,11.09306544]
[1768674056031,0.28152652,3318.0,3317.6,11.09306544]
[1768674056229,13.07466135,3318.1,3317.6,11.09306544]
[1768674056529,0.28152866,3318.0,3317.6,11.09306544]
[1768674056825,13.07466135,3318.1,3317.6,11.09306544]
[1768674057027,0.2815292,3318.0,3317.6,11.09306544]
[1768674057198,13.07466135,3318.1,3317.6,11.09306544]
[1768674057397,0.28153314,3318.0,3317.6,11.09306544]
[1768674057600,11.61209127,3318.1,3317.6,11.09306544]
[1768674057800,0.28153265,3318.0,3317.6,11.09306544]
[1768674058025,11.61209127,3318.1,3317.6,11.09306544]
[1768674058333,0.28153272,3318.0,3317.6,11.09306544]
[1768674058514,0.001,3317.8,3317.6,11.09306544]
[1768674061740,0.001,3317.8,3317.6,14.10728706]
[1768674062230,0.001,3317.8,3317.6,11.09306544]
[1768674063227,0.001,3317.8,3317.6,14.1072567]
[1768674064225,0.001,3317.8,3317.6,11.09306544]
[1768674070230,0.001,3317.8,3317.6,14.10728873]
[1768674070436,0.001,3317.8,3317.7,9.81954749]
[1768674073937,0.001,3317.8,3317.6,0.498]
[1768674074337,0.001,3317.8,3317.3,12.83400859]
[1768674074510,0.001,3317.8,3317.4,10.31754749]
[1768674075133,0.001,3317.8,3317.5,0.498]
[1768674075332,8.5851194,3317.8,3317.5,0.498]
[1768674078119,0.001,3317.8,3317.5,0.498]
[1768674088857,0.001,3317.8,3317.5,0.49485238]
[1768674089157,0.001,3317.8,3317.4,9.81954749]
[1768674089358,0.001,3317.8,3317.6,0.498]
[1768674094163,11.547967,3317.9,3317.6,0.498]
[1768674096863,11.497967,3317.9,3317.6,0.498]
[1768674101659,11.447967,3317.9,3317.6,0.498]
[1768674105870,11.447967,3317.9,3317.6,0.5]
[1768674107838,11.397967,3317.9,3317.6,0.5]
[1768674108858,11.397967,3317.9,3317.4,11.19974424]
[1768674108859,15.75968732,3317.9,3317.4,11.19974424]
[1768674109065,8.65699198,3317.8,3317.4,0.498]
[1768674109240,8.37510489,3317.8,3317.4,0.498]
[1768674111467,11.38916013,3317.8,3317.4,0.498]
[1768674111777,8.37510489,3317.8,3317.4,0.498]
[1768674113374,8.37510489,3317.8,3317.4,10.55153831]
[1768674113577,7.37570402,3317.9,3317.4,10.55153831]
[1768674116307,7.37570402,3317.9,3317.4,10.05353831]
[1768674116460,7.37570402,3317.9,3317.4,10.55153831]
[1768674118612,0.001,3317.6,3317.4,10.55153831]
[1768674128395,0.001,3317.6,3317.4,0.498]
[1768674135511,0.001,3317.6,3317.4,3.51240846]
[1768674136211,0.001,3317.6,3317.4,13.56594677]
[1768674141212,0.001,3317.6,3317.4,13.06794677]
[1768674141378,0.001,3317.6,3317.4,13.56594677]
[1768674141578,0.001,3317.6,3317.5,10.05353831]
[1768674142918,0.001,3317.6,3317.4,3.51240846]
[1768674143494,0.001,3317.6,3317.4,13.26322173]
[1768674146819,0.001,3317.6,3317.4,10.24881327]
[1768674147518,0.001,3317.6,3317.4,13.26321445]
[1768674151723,0.001,3317.6,3317.4,9.75081327]
[1768674151936,0.001,3317.6,3317.4,10.24881327]
[1768674168342,0.001,3317.6,3317.4,13.26321897]
[1768674173142,0.001,3317.6,3317.5,9.98386684]
[1768674173356,8.39043309,3318.1,3317.5,9.98386684]
[1768674173545,0.2819111,3318.0,3317.5,9.98386684]
[1768674173718,0.2819111,3317.9,3317.5,9.98386684]
[1768674173920,8.39043309,3318.0,3317.5,9.98386684]
[1768674174127,0.28191163,3317.9,3317.5,9.98386684]
[1768674174448,8.39043309,3318.0,3317.5,9.98386684]
[1768674174649,0.28190786,3317.9,3317.5,12.99812906]
[1768674174852,8.39043309,3318.0,3317.5,12.99812906]
[1768674175012,0.28190891,3317.9,3317.5,12.99812906]
[1768674175214,8.39043309,3318.0,3317.5,12.99812906]
[1768674175452,0.28190709,3317.9,3317.5,12.99812906]
[1768674175650,3.01370379,3318.2,3317.6,9.98386684]
[1768674175831,0.67370825,3318.1,3317.6,9.98386684]
[1768674176031,0.28190683,3318.0,3317.6,9.98386684]
[1768674176253,0.39180142,3318.1,3317.6,9.98386684]
[1768674176442,0.28190317,3318.0,3317.6,9.98386684]
[1768674176647,0.39180142,3318.1,3317.6,9.98386684]
[1768674176957,0.28190341,3318.0,3317.7,9.98386684]
[1768674177252,0.39180142,3318.1,3317.7,9.98386684]
[1768674177451,0.2818969,3318.0,3317.7,9.98386684]
[1768674177615,0.39180142,3318.1,3317.7,9.98386684]
[1768674177818,0.28190026,3318.0,3317.7,9.98386684]
[1768674178140,0.39180142,3318.1,3317.7,9.98386684]
[1768674178340,0.28188671,3318.0,3317.7,9.98386684]
[1768674178543,0.39180142,3318.1,3317.7,9.98386684]
[1768674178731,0.28188682,3318.0,3317.7,9.98386684]
[1768674179052,0.39180142,3318.1,3317.7,9.98386684]
[1768674179353,0.28188653,3318.0,3317.7,9.98386684]
[1768674179530,0.39180142,3318.1,3317.7,9.98386684]
[1768674179721,0.28187817,3318.0,3317.7,9.98386684]
[1768674179921,0.39180142,3318.1,3317.7,9.98386684]
[1768674180152,0.2818786,3318.0,3317.7,9.98386684]
[1768674180452,0.39180142,3318.1,3317.7,9.98386684]
[1768674180653,0.28187732,3318.0,3317.7,9.98386684]
[1768674180857,0.39180142,3318.1,3317.7,9.98386684]
[1768674181033,0.28187672,3318.0,3317.7,9.98386684]
[1768674181236,0.39180142,3318.1,3317.7,9.98386684]
[1768674181425,0.281871,3318.0,3317.7,9.98386684]
[1768674181724,0.39180142,3318.1,3317.7,9.98386684]
[1768674181924,0.28187093,3318.0,3317.7,9.98386684]
[1768674182124,0.39180142,3318.1,3317.7,9.98386684]
[1768674182358,8.67371658,3318.0,3317.5,12.99818485]
[1768674182522,8.39184677,3318.0,3317.5,12.99818485]
[1768674184342,9.57158099,3318.0,3317.5,13.49618485]
[1768674189162,0.001,3317.7,3317.5,13.49618485]
[1768674196474,8.39184677,3318.0,3317.6,9.98386684]
[1768674197454,8.39389955,3318.3,3317.6,9.98386684]
[1768674197653,8.39389955,3318.3,3317.5,6.52663602]
[1768674197654,9.29814725,3318.5,3317.7,9.98386684]
[1768674198352,0.498,3318.6,3317.9,9.98386684]
[1768674198545,0.498,3318.6,3317.9,10.48186684]
[1768674198871,8.39402416,3318.7,3317.9,10.48186684]
[1768674200082,9.29942961,3318.9,3317.9,10.48186684]
[1768674200267,9.29942961,3318.9,3318.1,9.98386684]
[1768674200473,8.39526912,3318.9,3318.1,9.98386684]
[1768674201392,11.40832105,3318.9,3318.1,9.98386684]
[1768674202481,11.40832105,3318.9,3318.2,3.01368211]
[1768674202687,11.40832105,3318.9,3318.3,10.50305246]
[1768674203687,8.39526912,3318.9,3318.3,10.50305246]
[1768674205402,8.39526912,3318.9,3318.4,13.01855294]
[1768674205591,8.39526912,3318.9,3318.4,10.00505246]
[1768674205793,11.40832321,3318.9,3318.4,10.00505246]
[1768674206397,8.39526912,3318.9,3318.4,10.00505246]
[1768674206595,0.001,3318.9,3318.4,10.00505246]
[1768674208559,0.001,3318.9,3318.5,10.00505246]
[1768674212106,0.001,3318.9,3318.5,13.0184274]
[1768674212272,0.001,3318.9,3318.5,10.00505246]
[1768674213913,0.001,3318.6,3318.5,10.00505246]
[1768674217187,0.001,3318.6,3318.5,13.01846213]
[1768674219807,0.001,3318.6,3318.5,10.00505246]
[1768674221783,0.001,3318.6,3318.3,13.96886373]
[1768674224917,0.001,3318.6,3318.3,3.51155087]
[1768674225120,0.001,3318.6,3318.3,13.96886373]
[1768674225418,0.001,3318.6,3318.4,10.45731286]
[1768674231920,0.001,3318.6,3318.5,10.27728729]
[1768674232121,0.001,3318.9,3318.5,10.27728729]
[1768674234425,0.001,3318.9,3318.6,3.01331886]
[1768674240136,0.001,3318.9,3318.6,13.29060615]
[1768674242439,0.001,3318.9,3318.7,10.27728729]
[1768674242944,0.00080024,3319.2,3318.8,10.27728729]
[1768674244443,0.001,3319.3,3319.0,10.27728729]
[1768674245897,0.001,3319.3,3319.0,13.29016528]
[1768674248078,0.001,3319.3,3319.1,10.27728729]
[1768674249590,0.001,3319.3,3319.1,13.29012951]
[1768674254613,0.00080024,3319.5,3319.1,13.29012951]
[1768674254817,0.00080024,3319.5,3319.1,16.30299444]
[1768674255408,0.00080024,3319.5,3319.2,10.27728729]
[1768674256599,0.00080024,3319.5,3319.3,3.01268339]